bitfinex-derivatives/quotes_ETHF0:USTF0_20240905
["timestamp","ask_amount","ask_price","bid_price","bid_amount"]
[1725559525004,3.5998,2390.7,2390.4,0.41839]
[1725559525412,3.5998,2390.7,2390.2,2.89]
[1725559525617,3.5998,2390.7,2390.3,0.41841]
[1725559526517,3.5998,2390.7,2390.2,2.89]
[1725559526518,3.5998,2390.7,2390.4,0.4184]
[1725559526710,3.5998,2390.7,2390.5,0.41838]
[1725559526920,3.5998,2390.7,2390.4,0.41839]
[1725559528121,0.00626946,2390.8,2390.7,0.41835]
[1725559530128,0.00626946,2390.8,2390.6,0.41836]
[1725559530323,0.00626946,2390.8,2390.4,6.0978]
[1725559530635,0.00626946,2390.8,2390.6,0.41835]
[1725559530924,0.00626946,2390.8,2390.7,0.41835]
[1725559532928,0.00626946,2390.8,2390.7,1.15995]
[1725559534025,0.00626946,2390.8,2390.7,0.79945]
[1725559536220,0.00626946,2390.8,2390.7,1.84532]
[1725559537120,0.00626946,2390.8,2390.7,0.79945]
[1725559538220,0.00626946,2390.8,2390.7,0.41835]
[1725559538426,0.42460946,2390.8,2390.7,0.41835]
[1725559538820,0.00626946,2390.8,2390.7,0.41835]
[1725559539131,0.00626946,2390.8,2390.7,1.46422]
[1725559539528,0.00626946,2390.8,2390.7,1.83792]
[1725559539728,0.00626946,2390.8,2390.7,2.20982]
[1725559540729,0.00626946,2390.8,2390.7,0.41835]
[1725559541132,0.42460946,2390.8,2390.7,0.41835]
[1725559541434,0.00626946,2390.8,2390.7,0.41835]
[1725559541835,0.00626946,2390.8,2390.7,1.46422]
[1725559542526,0.00626946,2390.8,2390.7,1.82182]
[1725559543928,0.00626946,2390.8,2390.7,0.41835]
[1725559544636,0.41835,2390.7,2390.6,0.41835]
[1725559544826,1.16425,2390.7,2390.6,0.41835]
[1725559545028,1.1389,2390.7,2390.6,0.41835]
[1725559545328,1.55725,2390.7,2390.6,0.41835]
[1725559545533,1.1389,2390.7,2390.6,0.41835]
[1725559546637,0.7459,2390.7,2390.6,0.41835]
[1725559546936,0.00626946,2390.8,2390.7,1.46422]
[1725559547135,0.00626946,2390.8,2390.7,1.83122]
[1725559547341,0.00626946,2390.8,2390.7,0.78535]
[1725559547836,0.00626946,2390.8,2390.7,0.41835]
[1725559554339,0.36466946,2390.8,2390.7,0.41835]
[1725559555236,0.41835,2390.7,2390.6,0.41835]
[1725559555532,0.41835,2390.7,2390.5,0.41838]
[1725559555533,0.41836,2390.6,2390.5,0.41838]
[1725559555737,1.14546,2390.6,2390.5,0.41838]
[1725559556440,0.41838,2390.5,2390.4,0.41839]
[1725559557140,1.14548,2390.6,2390.5,0.41838]
[1725559559343,0.7271,2390.6,2390.5,0.41838]
[1725559559544,1.14546,2390.6,2390.5,0.41838]
[1725559559745,0.7271,2390.6,2390.5,0.41838]
[1725559560143,0.3595,2390.6,2390.5,0.41838]
[1725559560345,0.36466946,2390.8,2390.7,0.41835]
[1725559560543,0.36466946,2390.8,2390.7,1.46422]
[1725559560742,0.00626946,2390.8,2390.7,1.46422]
[1725559561241,0.00626946,2390.8,2390.7,9.58249]
[1725559561547,0.3674,2391.2,2391.1,0.41828]
[1725559561738,0.3825,2391.3,2390.7,3.67225]
[1725559561943,0.7428,2391.6,2391.5,0.41821]
[1725559562146,1.1253,2391.6,2391.5,0.41821]
[1725559563047,1.1253,2391.6,2391.4,0.41821]
[1725559563958,1.1253,2391.6,2391.5,0.41821]
[1725559564548,0.00626946,2391.8,2391.7,0.41817]
[1725559564860,0.00626946,2391.8,2391.7,9.30817]
[1725559565154,0.3857,2392.4,2392.3,0.41807]
[1725559565343,0.3612,2392.7,2392.5,0.41802]
[1725559565548,0.3612,2392.7,2391.9,0.5915]
[1725559565549,0.20522091,2392.6,2391.9,0.5915]
[1725559565752,0.7469,2392.7,2392.4,0.41805]
[1725559566061,0.3857,2392.7,2392.1,2.89]
[1725559566259,0.3857,2392.7,2392.2,3.2078]
[1725559566260,0.00626946,2392.6,2392.2,3.2078]
[1725559566559,0.00626946,2392.6,2392.4,0.41804]
[1725559567360,0.00626946,2392.6,2392.3,0.41806]
[1725559567755,0.00626946,2392.6,2392.4,0.41804]
[1725559568362,0.00626946,2392.6,2392.5,0.41803]
[1725559568776,0.00626946,2392.6,2392.5,4.59803]
[1725559569154,0.00626946,2392.6,2392.5,0.41803]
[1725559572464,0.42428946,2392.6,2392.3,0.41805]
[1725559572868,0.42428946,2392.6,2392.4,0.41805]
[1725559573168,0.00626946,2392.6,2392.5,0.41803]
[1725559573551,0.00626946,2392.6,2392.5,4.59803]
[1725559574864,0.42428946,2392.6,2392.4,0.41804]
[1725559575164,0.42428946,2392.6,2392.2,0.41808]
[1725559575165,0.00626946,2392.6,2392.2,0.41808]
[1725559575369,2.89,2392.4,2391.9,4.146]
[1725559575665,0.41812,2392.0,2391.8,0.41814]
[1725559575965,0.3654,2391.9,2391.5,3.2078]
[1725559576169,1.14464,2391.9,2391.5,3.2078]
[1725559576368,1.14464,2391.9,2391.6,0.41818]
[1725559576571,1.14464,2391.9,2391.7,0.41817]
[1725559576868,0.7265,2391.9,2391.8,0.41815]
[1725559577061,0.3654,2391.9,2391.8,0.41815]
[1725559577464,0.3654,2391.9,2391.7,0.41815]
[1725559577663,0.41818,2391.7,2391.4,0.41822]
[1725559577861,0.41816,2391.8,2391.3,4.15226946]
[1725559578061,0.41816,2391.8,2391.5,0.4182]
[1725559578572,3.5732,2391.9,2391.3,0.00626946]
[1725559578760,3.5732,2391.9,2391.7,0.41816]
[1725559579066,3.5732,2391.9,2391.8,0.41815]
[1725559579573,3.5732,2391.9,2391.7,0.41816]
[1725559580966,3.5732,2391.9,2391.8,0.41815]
[1725559581969,3.5732,2391.9,2391.7,0.41816]
[1725559582972,0.41815,2391.8,2391.6,0.41818]
[1725559583171,3.99135,2391.9,2391.7,0.41817]
[1725559583566,3.5732,2391.9,2391.7,0.41817]
[1725559584068,3.5732,2391.9,2391.8,0.41815]
[1725559585257,3.5732,2391.9,2391.4,3.2078]
[1725559585479,0.41816,2391.8,2391.6,0.41817]
[1725559585667,3.99135,2391.9,2391.7,0.41817]
[1725559585869,3.5732,2391.9,2391.8,0.41815]
[1725559586573,3.99134,2391.9,2391.8,0.41815]
[1725559587069,3.5732,2391.9,2391.8,0.41815]
[1725559589470,3.5732,2391.9,2391.4,4.25335]
[1725559589471,0.41817,2391.8,2391.4,3.2078]
[1725559589771,0.41816,2391.8,2391.6,0.41817]
[1725559589972,0.394,2391.7,2391.6,0.41817]
[1725559592973,0.81217,2391.7,2391.6,0.41817]
[1725559593171,0.81217,2391.7,2391.4,3.2078]
[1725559593172,0.81217,2391.7,2391.5,0.41819]
[1725559593468,0.41821,2391.5,2391.4,0.41822]
[1725559593672,0.3717,2391.6,2391.4,0.41822]
[1725559593873,0.41821,2391.5,2391.4,0.41822]
[1725559594975,0.3717,2391.6,2391.5,0.41821]
[1725559595671,0.78989,2391.6,2391.5,0.41821]
[1725559596369,0.3717,2391.6,2391.5,0.41821]
[1725559597280,0.78989,2391.6,2391.5,0.41821]
[1725559597970,0.41821,2391.5,2391.4,0.41821]
[1725559599369,0.41822,2391.4,2391.3,0.42449946]
[1725559599577,0.79322,2391.4,2391.3,0.00626946]
[1725559599781,1.83878,2391.4,2391.3,0.00626946]
[1725559600477,6.02038,2391.4,2391.3,0.00626946]
[1725559604177,6.02038,2391.4,2391.3,0.42450946]
[1725559604480,4.97482,2391.4,2391.3,0.00626946]
[1725559604680,4.5566,2391.4,2391.3,0.00626946]
[1725559604978,0.41822,2391.5,2391.4,0.41822]
[1725559605180,0.79952,2391.5,2391.4,0.41822]
[1725559605475,0.41822,2391.4,2391.3,0.00626946]
[1725559605886,4.59982,2391.4,2391.3,0.00626946]
[1725559606184,4.59982,2391.4,2391.3,0.42450946]
[1725559606387,0.41822,2391.4,2391.3,0.42450946]
[1725559606981,0.41822,2391.4,2391.3,0.00626946]
[1725559607680,0.41822,2391.4,2391.3,0.42450946]
[1725559608178,0.41822,2391.4,2391.3,0.00626946]
[1725559609482,5.64538,2391.4,2391.3,0.00626946]
[1725559610780,4.59982,2391.4,2391.3,0.00626946]
[1725559611085,0.41822,2391.4,2391.3,0.42450946]
[1725559611877,0.3813,2391.5,2391.4,0.41822]
[1725559613795,3.2078,2391.6,2391.3,1.05186946]
[1725559613981,3.2078,2391.6,2391.5,0.41821]
[1725559614987,0.3718,2391.8,2391.7,0.41817]
[1725559615187,7.6694,2392.0,2391.9,0.41814]
[1725559615188,7.3038,2392.0,2391.9,0.41814]
[1725559615389,3.2078,2392.0,2391.9,0.41814]
[1725559616186,3.2078,2392.0,2391.8,0.41814]
[1725559618180,3.2078,2392.0,2391.5,2.89]
[1725559618181,3.62592,2392.0,2391.7,0.41816]
[1725559618586,0.41814,2391.9,2391.7,0.41816]
[1725559618891,3.2078,2392.0,2391.7,0.41816]
[1725559618892,3.62592,2392.0,2391.7,0.41816]
[1725559619390,0.41814,2391.9,2391.7,0.41816]
[1725559620589,0.41815,2391.8,2391.7,0.41816]
[1725559620794,0.41815,2391.8,2391.3,4.54146946]
[1725559620795,2.89,2391.8,2391.3,4.54146946]
[1725559620977,0.41821,2391.5,2391.3,0.42449946]
[1725559621283,0.3637,2391.4,2391.3,0.42449946]
[1725559621989,0.3637,2391.6,2391.5,0.4182]
[1725559622189,0.3692,2391.7,2391.6,0.41819]
[1725559622485,3.2078,2392.0,2391.3,2.89626946]
[1725559622486,0.41814,2391.9,2391.7,0.41816]
[1725559622684,0.41815,2391.9,2391.7,0.41816]
[1725559623993,0.41815,2391.8,2391.7,0.41816]
[1725559624491,0.41815,2391.9,2391.8,0.41815]
[1725559624691,3.98962,2392.0,2391.9,0.41814]
[1725559624880,3.5715,2392.0,2391.9,0.41814]
[1725559625385,0.3678,2392.2,2392.1,0.4181]
[1725559625884,0.3678,2392.2,2391.8,0.7482]
[1725559625885,0.7859,2392.2,2391.8,0.7482]
[1725559626092,0.7859,2392.2,2392.0,0.41811]
[1725559626280,0.4181,2392.1,2392.0,0.41811]
[1725559627390,3.9937,2392.2,2392.1,0.4181]
[1725559627584,0.41811,2392.1,2392.0,0.41811]
[1725559628179,3.9937,2392.2,2392.1,0.4181]
[1725559628385,0.4181,2392.1,2392.0,0.41812]
[1725559629088,0.4181,2392.1,2391.6,0.41818]
[1725559629089,0.41818,2391.7,2391.6,0.41818]
[1725559629286,0.41816,2391.8,2391.7,0.41817]
[1725559629483,0.41817,2391.7,2391.6,0.41818]
[1725559629682,0.41819,2391.6,2391.3,0.75276946]
[1725559629883,0.41819,2391.6,2391.5,0.4182]
[1725559630095,3.9753,2391.8,2391.3,0.00626946]
[1725559630096,0.41822,2391.4,2391.3,0.00626946]
[1725559630294,3.2078,2391.4,2391.3,0.42450946]
[1725559630494,0.3841,2391.5,2391.4,0.41822]
[1725559630694,0.4182,2391.6,2391.4,0.41822]
[1725559631492,3.2078,2391.7,2391.6,0.41819]
[1725559631797,1.56976,2391.8,2391.6,0.41819]
[1725559631991,1.1516,2391.8,2391.7,0.41817]
[1725559632494,2.89,2392.3,2391.7,4.1808]
[1725559632796,0.4181,2392.1,2391.9,0.41812]
[1725559633183,0.7582,2392.2,2391.9,0.41812]
[1725559633388,0.7582,2392.2,2392.1,0.4181]
[1725559634688,0.7582,2392.2,2391.8,0.3908]
[1725559634994,0.7582,2392.2,2392.0,0.41811]
[1725559635299,1.17628,2392.2,2392.0,0.41811]
[1725559636584,1.17628,2392.2,2391.8,0.3908]
[1725559636585,0.7582,2392.2,2392.1,0.4181]
[1725559636785,3.5919,2392.4,2392.3,0.41807]
[1725559636990,0.42428946,2392.6,2392.5,0.41803]
[1725559636991,0.00626946,2392.6,2392.5,0.41803]
[1725559638193,0.00626946,2392.6,2392.5,4.59803]
[1725559638388,0.00626946,2392.6,2392.5,0.41803]
[1725559638794,0.00626946,2392.6,2392.5,4.59803]
[1725559640293,0.00626946,2392.6,2392.5,16.69583]
[1725559640600,0.00626946,2392.6,2392.5,14.53311]
[1725559640894,0.00626946,2392.6,2392.5,4.59803]
[1725559644505,0.00626946,2392.6,2392.5,0.41803]
[1725559645705,0.00626946,2392.6,2392.5,1.46311]
[1725559646006,0.00626946,2392.6,2392.5,0.41803]
[1725559648101,0.00626946,2392.6,2392.2,0.3842]
[1725559648308,4.25288,2392.5,2392.1,0.41809]
[1725559648502,0.77366,2392.4,2392.2,0.41808]
[1725559648698,0.7459,2392.4,2392.3,0.41807]
[1725559648904,0.41807,2392.3,2392.2,0.41808]
[1725559649103,1.16396,2392.4,2392.2,0.41808]
[1725559649301,1.16396,2392.4,2392.3,0.41807]
[1725559649708,1.16396,2392.4,2392.2,0.41807]
[1725559650299,1.04517,2392.3,2391.9,0.41812]
[1725559650504,3.62593,2392.0,2391.8,0.41814]
[1725559650708,3.62593,2392.0,2391.9,0.41814]
[1725559650907,3.2078,2392.0,2391.9,0.41814]
[1725559651613,3.62593,2392.0,2391.8,0.41814]
[1725559651911,3.62593,2392.0,2391.9,0.41814]
[1725559652411,1.04523,2392.2,2391.8,0.41815]
[1725559652606,0.41813,2392.0,2391.8,0.41815]
[1725559653212,3.2078,2392.1,2391.9,0.41814]
[1725559653410,0.41811,2392.1,2391.9,0.41814]
[1725559653912,0.41812,2392.0,2391.9,0.41814]
[1725559654411,0.41811,2392.1,2391.9,0.41814]
[1725559654615,4.60855,2392.4,2391.5,4.669]
[1725559654916,0.41809,2392.2,2392.1,0.41809]
[1725559656817,0.4181,2392.1,2392.0,0.41811]
[1725559657308,0.41812,2392.0,2391.9,0.41812]
[1725559657516,4.25307,2392.1,2391.5,3.2546]
[1725559657817,0.3635,2391.9,2391.5,3.2546]
[1725559658114,0.3635,2391.9,2391.8,0.41814]
[1725559660115,0.78164,2391.9,2391.7,0.41816]
[1725559660421,0.41815,2391.8,2391.7,0.41816]
[1725559660614,0.41815,2391.8,2391.4,4.25335]
[1725559660615,0.3635,2391.9,2391.4,3.2078]
[1725559660908,0.3635,2391.9,2391.3,2.89626946]
[1725559661104,0.78164,2391.9,2391.5,2.89]
[1725559661310,0.78164,2391.9,2391.8,0.41815]
[1725559661509,0.41815,2391.8,2391.7,0.41816]
[1725559661817,0.78164,2391.9,2391.8,0.41815]
[1725559663317,0.78164,2391.9,2391.7,0.41816]
[1725559664009,0.78164,2391.9,2391.8,0.41815]
[1725559665620,3.5713,2391.9,2391.3,0.37706946]
[1725559665909,3.5713,2391.9,2391.6,0.41818]
[1725559665910,0.41818,2391.7,2391.6,0.41818]
[1725559666514,0.41819,2391.6,2391.5,0.41819]
[1725559668004,0.78446,2391.8,2391.7,0.41817]
[1725559668420,4.96526,2391.8,2391.7,0.41817]
[1725559668810,0.41818,2391.7,2391.6,0.41818]
[1725559670105,0.78447,2391.8,2391.7,0.41817]
[1725559670310,0.41818,2391.7,2391.6,0.41818]
[1725559671010,0.78447,2391.8,2391.7,0.41817]
[1725559671415,4.96527,2391.8,2391.7,0.41817]
[1725559672213,0.41818,2391.7,2391.6,0.41817]
[1725559674016,0.78447,2391.8,2391.7,0.41817]
[1725559674214,0.3663,2391.8,2391.7,0.41817]
[1725559674417,4.5471,2391.8,2391.7,0.41817]
[1725559674613,0.3635,2391.9,2391.8,0.41815]
[1725559675021,4.5443,2391.9,2391.8,0.41815]
[1725559675822,0.3635,2391.9,2391.8,0.41815]
[1725559676024,0.78164,2391.9,2391.8,0.41815]
[1725559680015,0.41816,2391.8,2391.7,0.41816]
[1725559680325,0.41816,2391.8,2391.7,0.41815]
[1725559681011,3.98945,2391.9,2391.8,0.41815]
[1725559681412,8.17025,2391.9,2391.8,0.41815]
[1725559681817,3.5713,2391.9,2391.8,0.41815]
[1725559682017,3.2078,2391.9,2391.8,4.59895]
[1725559682223,0.7178,2392.3,2392.2,0.41808]
[1725559682729,0.3564,2392.3,2392.2,4.59808]
[1725559682920,0.3564,2392.3,2392.2,0.41808]
[1725559683115,0.3564,2392.3,2392.2,4.59808]
[1725559683427,0.3564,2392.3,2392.2,0.41808]
[1725559683620,0.3564,2392.3,2392.1,0.41809]
[1725559683824,0.3564,2392.3,2392.0,3.2078]
[1725559683825,0.3797,2392.2,2392.0,3.2078]
[1725559684127,0.41815,2391.9,2391.7,0.41816]
[1725559684428,0.7361,2391.8,2391.7,0.41816]
[1725559685236,0.7361,2391.8,2391.5,0.3782]
[1725559685237,0.7361,2391.8,2391.6,0.41818]
[1725559685425,1.15426,2391.8,2391.7,0.41817]
[1725559685722,0.7361,2391.8,2391.7,0.41817]
[1725559688320,0.7361,2391.8,2391.4,0.3781]
[1725559688321,0.7361,2391.8,2391.6,0.41817]
[1725559688724,0.41818,2391.7,2391.6,0.41817]
[1725559689422,0.7361,2391.8,2391.3,3.25176946]
[1725559689628,1.15426,2391.8,2391.3,3.25176946]
[1725559689927,0.7361,2391.8,2391.7,0.41817]
[1725559690426,0.41811,2392.1,2392.0,0.41811]
[1725559690624,0.3771,2392.1,2391.9,0.41813]
[1725559690819,0.41812,2392.0,2391.9,0.41813]
[1725559691531,0.79521,2392.1,2392.0,0.41812]
[1725559691728,0.79521,2392.1,2391.9,0.41812]
[1725559691932,0.79521,2392.1,2392.0,0.41812]
[1725559692431,0.79521,2392.1,2391.9,0.41812]
[1725559692926,0.79521,2392.1,2392.0,0.41812]
[1725559693139,0.79521,2392.1,2391.9,0.41812]
[1725559693430,0.3771,2392.1,2391.8,0.77364]
[1725559693626,0.41813,2392.0,2391.9,0.41813]
[1725559694330,0.41814,2391.9,2391.8,0.41814]
[1725559694521,0.78134,2391.9,2391.8,0.41814]
[1725559695420,0.3632,2391.9,2391.8,0.41814]
[1725559696342,0.3771,2392.1,2391.7,1.04543]
[1725559696634,0.3632,2392.3,2392.2,0.41808]
[1725559696834,0.3593,2392.3,2392.2,0.41808]
[1725559697131,0.77737,2392.3,2392.2,0.41808]
[1725559697724,0.3593,2392.3,2391.8,3.5945]
[1725559697922,0.41814,2391.9,2391.8,3.62594]
[1725559698331,0.41815,2391.8,2391.7,0.41816]
[1725559698534,0.80885,2391.8,2391.7,0.41816]
[1725559699734,0.80885,2391.8,2391.6,0.41818]
[1725559699735,0.41819,2391.7,2391.6,0.41818]
[1725559700432,0.80887,2391.8,2391.7,0.41817]
[1725559701833,0.4182,2391.6,2391.5,0.41819]
[1725559702237,0.41818,2391.7,2391.6,0.41818]
[1725559702531,1.14743,2392.0,2391.5,1.0455]
[1725559702734,0.3693,2392.0,2391.9,0.41814]
[1725559703436,0.4181,2392.1,2392.0,0.4181]
[1725559704737,0.3757,2392.3,2392.2,0.41808]
[1725559707635,0.3594,2392.4,2392.1,3.9819]
[1725559707840,9.46e-06,2392.6,2392.5,1.46311]
[1725559708025,9.46e-06,2392.6,2392.5,12.78599]
[1725559708330,0.3695,2393.5,2393.4,0.41787]
[1725559708532,0.3919,2393.7,2393.5,0.41784]
[1725559708735,0.3919,2393.7,2393.5,0.41785]
[1725559708928,0.3919,2393.7,2393.0,3.2078]
[1725559708929,0.80972,2393.7,2393.4,0.41786]
[1725559709129,0.80973,2393.7,2393.4,0.41786]
[1725559709326,0.41784,2393.6,2393.4,0.41786]
[1725559709536,0.80972,2393.7,2393.5,0.41785]
[1725559709727,0.80972,2393.7,2393.4,0.41787]
[1725559710540,0.41784,2393.6,2393.3,0.42414946]
[1725559710738,0.80973,2393.7,2393.4,0.41787]
[1725559711236,0.41784,2393.6,2393.3,0.42414946]
[1725559711637,0.41787,2393.5,2393.3,0.00626946]
[1725559712141,0.3604,2393.4,2393.3,0.00626946]
[1725559712345,0.3604,2393.4,2393.3,0.42415946]
[1725559713441,0.3604,2393.4,2393.3,0.00626946]
[1725559713628,0.3604,2393.4,2393.3,0.42415946]
[1725559713837,0.3604,2393.4,2393.3,0.00626946]
[1725559714036,0.77827,2393.4,2393.3,0.00626946]
[1725559714241,0.3604,2393.4,2393.3,0.00626946]
[1725559714440,0.77827,2393.4,2393.3,0.00626946]
[1725559714647,0.3604,2393.4,2393.3,0.00626946]
[1725559714831,0.3604,2393.4,2393.3,0.42415946]
[1725559715748,0.41784,2393.6,2393.3,0.42415946]
[1725559715935,1.17403,2393.7,2393.5,0.41785]
[1725559716446,0.7562,2393.7,2393.6,0.41784]
[1725559717148,0.3919,2393.7,2393.6,0.41784]
[1725559717638,0.80972,2393.7,2393.5,0.41784]
[1725559718542,0.80972,2393.7,2393.6,0.41784]
[1725559719239,0.3919,2393.7,2393.6,0.41784]
[1725559719841,0.80972,2393.7,2393.6,0.41784]
[1725559720042,1.0446,2393.6,2393.3,0.00626946]
[1725559720237,0.3919,2393.7,2393.3,0.00626946]
[1725559720545,0.3919,2393.7,2393.6,0.41784]
[1725559720846,0.80972,2393.7,2393.6,0.41784]
[1725559721234,0.3919,2393.7,2393.6,0.41784]
[1725559721644,0.80972,2393.7,2393.6,0.41784]
[1725559722151,0.3919,2393.7,2393.6,0.41784]
[1725559722546,0.00626946,2393.8,2393.7,0.41782]
[1725559722746,0.00626946,2393.8,2393.7,5.63998]
[1725559723042,0.00626946,2393.8,2393.7,12.68454]
[1725559723242,9.46e-06,2393.8,2393.7,12.68454]
[1725559724437,9.46e-06,2393.8,2393.7,11.63998]
[1725559725747,9.46e-06,2393.8,2393.7,10.59542]
[1725559726050,9.46e-06,2393.8,2393.7,4.59542]
[1725559727739,9.46e-06,2393.8,2393.7,0.41782]
[1725559731553,9.46e-06,2393.8,2393.6,3.62563]
[1725559731750,0.41782,2393.7,2393.6,3.62563]
[1725559731957,0.41782,2393.7,2393.6,3.2078]
[1725559733551,1.46238,2393.7,2393.6,3.2078]
[1725559733753,0.41787,2393.4,2393.3,0.00626946]
[1725559734153,8.84876,2393.4,2393.3,0.00626946]
[1725559734751,9.06094618,2393.4,2393.3,0.00626946]
[1725559734948,0.41794,2393.1,2392.8,0.21]
[1725559735255,1.1287,2393.0,2392.9,0.41796]
[1725559735856,0.3752,2393.0,2392.9,3.30796]
[1725559736163,0.7535,2393.3,2393.2,0.41791]
[1725559737250,0.7535,2393.3,2392.9,2.89]
[1725559737451,1.1714,2393.3,2393.0,0.41793]
[1725559737849,1.79824,2393.3,2392.8,3.2078]
[1725559738048,0.41798,2392.8,2392.7,0.00626946]
[1725559738450,4.59718,2392.8,2392.7,0.00626946]
[1725559738651,1.045,2392.7,2392.0,0.41811]
[1725559738849,4.7021,2392.7,2391.9,7.45413]
[1725559739053,0.41809,2392.2,2391.7,2.89]
[1725559739250,3.2078,2392.5,2391.7,3.30816]
[1725559739251,0.8118,2392.1,2391.7,3.30816]
[1725559739459,0.3937,2392.1,2391.9,0.41813]
[1725559739947,0.3937,2392.1,2391.8,0.42440946]
[1725559740451,0.79775946,2392.2,2391.9,2.89]
[1725559740452,0.00626946,2392.2,2391.9,2.89]
[1725559740655,0.00626946,2392.2,2392.1,4.35336]
[1725559740864,3.2078,2392.9,2392.8,0.41798]
[1725559741557,0.3703,2393.0,2392.9,0.41796]
[1725559741760,0.3769,2393.2,2393.1,0.41793]
[1725559741960,0.3707,2393.3,2393.2,0.41791]
[1725559742265,0.3707,2393.3,2393.1,0.41792]
[1725559742463,0.3707,2393.3,2393.0,0.00626946]
[1725559742667,0.3707,2393.3,2393.2,0.41791]
[1725559743363,0.37656946,2393.4,2393.3,0.41789]
[1725559743960,0.00626946,2393.4,2393.3,0.41789]
[1725559744767,0.00626946,2393.4,2393.3,4.59629]
[1725559745661,0.00626946,2393.4,2393.2,0.4179]
[1725559746251,0.00626946,2393.4,2393.1,0.41792]
[1725559746561,0.00626946,2393.4,2393.2,0.41791]
[1725559746961,0.00626946,2393.4,2393.0,0.00626946]
[1725559746962,0.00626946,2393.4,2393.1,0.41792]
[1725559747260,0.00626946,2393.4,2393.2,0.41791]
[1725559748964,0.00626946,2393.4,2393.0,0.00626946]
[1725559749165,0.00626946,2393.4,2393.3,0.41789]
[1725559750265,0.42414946,2393.4,2393.0,0.00626946]
[1725559750564,0.42414946,2393.4,2393.2,0.4179]
[1725559750963,3.21406946,2393.4,2393.0,0.00626946]
[1725559751266,0.41791,2393.3,2393.0,0.42419946]
[1725559751563,0.42415946,2393.4,2393.1,0.41792]
[1725559751764,0.00626946,2393.4,2393.3,0.41789]
[1725559752062,0.00626946,2393.4,2393.3,1.46262]
[1725559752268,0.00626946,2393.4,2393.3,4.59629]
[1725559753463,0.00626946,2393.4,2393.3,5.64102]
[1725559753766,0.362,2393.8,2393.7,0.41782]
[1725559754463,0.3908,2394.0,2393.9,0.41779]
[1725559754857,0.3908,2394.0,2393.4,4.89468]
[1725559754858,0.3908,2394.0,2393.8,0.41779]
[1725559755065,0.80857,2394.0,2393.8,0.41779]
[1725559755356,0.80857,2394.0,2393.8,0.4178]
[1725559755557,0.3908,2394.0,2393.4,3.85]
[1725559755752,0.3908,2394.0,2393.6,0.41783]
[1725559755753,0.41781,2393.8,2393.6,0.41783]
[1725559755954,0.41783,2393.7,2393.3,3.585]
[1725559756170,3.5986,2394.0,2393.5,0.41784]
[1725559756466,0.41783,2393.7,2393.5,0.41785]
[1725559757376,0.80857,2394.0,2393.8,0.4178]
[1725559758065,0.41779,2393.9,2393.7,0.41781]
[1725559758462,0.41779,2393.9,2393.8,0.4178]
[1725559758854,0.41779,2393.9,2393.7,0.41781]
[1725559759157,0.41779,2393.9,2393.8,0.4178]
[1725559759359,0.3908,2394.0,2393.4,3.85]
[1725559759559,0.41784,2393.6,2393.5,0.41786]
[1725559761371,0.41783,2393.7,2393.6,0.41784]
[1725559761570,0.3823,2393.8,2393.6,0.41784]
[1725559761764,0.80012,2393.8,2393.6,0.41784]
[1725559762268,0.41782,2393.7,2393.5,0.41784]
[1725559763471,0.41784,2393.6,2393.5,0.41784]
[1725559764263,1.42683,2393.8,2393.4,0.41786]
[1725559764566,0.41786,2393.5,2393.4,0.41786]
[1725559765670,0.3582,2393.7,2393.3,0.41789]
[1725559765671,0.41788,2393.4,2393.3,0.41789]
[1725559766069,1.04461,2393.6,2393.1,4.6077]
[1725559766070,0.4179,2393.3,2393.2,0.4179]
[1725559766263,0.41793,2393.1,2393.0,0.42419946]
[1725559766667,0.41793,2393.1,2393.0,0.00626946]
[1725559766971,0.77613,2393.1,2393.0,0.00626946]
[1725559767367,0.77613,2393.1,2393.0,0.42420946]
[1725559767569,0.3582,2393.1,2393.0,0.42420946]
[1725559767963,0.77613,2393.1,2393.0,0.42420946]
[1725559768661,0.3867,2393.2,2393.1,0.41793]
[1725559769064,0.80461,2393.2,2393.1,3.30793]
[1725559770371,0.41793,2393.1,2393.0,0.00626946]
[1725559770872,0.41793,2393.1,2393.0,0.42420946]
[1725559771472,0.80462,2393.2,2393.1,0.41793]
[1725559772075,0.3867,2393.2,2393.1,3.30793]
[1725559772677,0.7205,2393.5,2393.1,2.89]
[1725559772882,0.3615,2393.6,2393.5,0.41786]
[1725559773279,0.77934,2393.6,2393.5,0.41786]
[1725559773969,0.41786,2393.5,2393.4,0.41786]
[1725559774173,0.77935,2393.6,2393.5,0.41786]
[1725559775584,0.41786,2393.5,2393.4,0.41786]
[1725559775777,0.77935,2393.6,2393.5,0.41786]
[1725559776583,0.41786,2393.5,2393.4,0.41786]
[1725559776792,0.41787,2393.4,2393.3,3.30788]
[1725559777675,1.40611,2393.6,2393.3,3.30788]
[1725559777876,1.40611,2393.6,2393.4,0.41786]
[1725559777877,0.41787,2393.5,2393.4,0.41786]
[1725559779583,0.3615,2393.6,2393.3,2.89]
[1725559779880,3.984,2393.9,2393.8,0.4178]
[1725559780075,3.5662,2393.9,2393.8,0.4178]
[1725559780784,3.2078,2393.9,2393.8,0.4178]
[1725559781084,3.2078,2393.9,2393.7,0.41781]
[1725559781286,4.25229,2393.9,2393.6,0.41783]
[1725559781487,0.41783,2393.7,2393.6,0.41783]
[1725559781983,4.1776,2393.7,2393.3,2.89]
[1725559782177,1.56285,2393.6,2393.5,0.41786]
[1725559783494,1.145,2393.6,2393.5,0.41786]
[1725559783683,3.2078,2393.9,2393.5,0.41786]
[1725559783684,3.6256,2393.9,2393.8,0.4178]
[1725559783888,3.9843,2393.9,2393.8,0.4178]
[1725559784088,0.41781,2393.8,2393.7,0.41781]